[Event "*** Titled Tuesday Blitz"]
[Site "Chess.com"]
[Date "2019.11.05"]
[Round "1"]
[White "dimke2802"]
[Black "Shield12"]
[Result "0-1"]
[WhiteElo "2432"]
[BlackElo "2806"]
[TimeControl "180+2"]
[EndTime "13:02:05 PST"]
[Termination "Shield12 won by resignation"]

1. d4 {[%clk 0:03:01.8]} 1... Nf6 {[%clk 0:03:00.8]} 2. Nf3 {[%clk 0:03:02.5]}
2... e6 {[%clk 0:03:02.1]} 3. c4 {[%clk 0:03:03.5]} 3... Bb4+ {[%clk 0:03:01.7]}
4. Bd2 {[%clk 0:03:04.2]} 4... a5 {[%clk 0:03:02.4]} 5. g3 {[%clk 0:03:04.9]}
5... d6 {[%clk 0:03:03.5]} 6. Bg2 {[%clk 0:03:06.1]} 6... Nbd7 {[%clk
0:03:05.1]} 7. O-O {[%clk 0:03:07.2]} 7... e5 {[%clk 0:03:06.7]} 8. Bg5 {[%clk
0:03:07.4]} 8... exd4 {[%clk 0:03:07.3]} 9. Nxd4 {[%clk 0:03:08.3]} 9... h6
{[%clk 0:03:08.4]} 10. Bxf6 {[%clk 0:03:08.7]} 10... Nxf6 {[%clk 0:03:06.2]} 11.
a3 {[%clk 0:03:09.2]} 11... Bc5 {[%clk 0:03:07]} 12. Nc3 {[%clk 0:03:09.9]}
12... O-O {[%clk 0:03:07.1]} 13. Rb1 {[%clk 0:03:05.2]} 13... a4 {[%clk
0:03:00.6]} 14. Ndb5 {[%clk 0:03:05.6]} 14... c6 {[%clk 0:03:01.1]} 15. Nd4
{[%clk 0:03:05.6]} 15... Re8 {[%clk 0:03:01.7]} 16. e3 {[%clk 0:03:06.1]} 16...
Bg4 {[%clk 0:02:57.5]} 17. Qc2 {[%clk 0:03:06.3]} 17... Qd7 {[%clk 0:02:53.1]}
18. Rfe1 {[%clk 0:03:02.4]} 18... Bxd4 {[%clk 0:02:49.9]} 19. exd4 {[%clk
0:03:03.2]} 19... Bf5 {[%clk 0:02:51.2]} 20. Ne4 {[%clk 0:02:56]} 20... Nxe4
{[%clk 0:02:52]} 21. Bxe4 {[%clk 0:02:56.5]} 21... Rxe4 {[%clk 0:02:52.9]} 22.
Rxe4 {[%clk 0:02:53.1]} 22... d5 {[%clk 0:02:54.2]} 23. cxd5 {[%clk 0:02:52.6]}
23... cxd5 {[%clk 0:02:55.3]} 24. Re8+ {[%clk 0:02:52.7]} 24... Rxe8 {[%clk
0:02:55.5]} 0-1

[Event "*** Titled Tuesday Blitz"]
[Site "Chess.com"]
[Date "2019.11.05"]
[Round "1"]
[White "Eliwood44"]
[Black "anesar92"]
[Result "0-1"]
[WhiteElo "2328"]
[BlackElo "2686"]
[TimeControl "180+2"]
[EndTime "13:02:35 PST"]
[Termination "anesar92 won by checkmate"]

1. d4 {[%clk 0:02:31.9]} 1... Nf6 {[%clk 0:02:55.9]} 2. Bf4 {[%clk 0:02:28.9]}
2... c5 {[%clk 0:02:54.6]} 3. d5 {[%clk 0:02:29]} 3... g6 {[%clk 0:02:53.9]} 4.
Nc3 {[%clk 0:02:29.7]} 4... Bg7 {[%clk 0:02:55]} 5. e4 {[%clk 0:02:31.2]} 5...
d6 {[%clk 0:02:55.3]} 6. Qd2 {[%clk 0:02:30.6]} 6... a6 {[%clk 0:02:56.4]} 7.
Bh6 {[%clk 0:02:27.4]} 7... Bxh6 {[%clk 0:02:55.8]} 8. Qxh6 {[%clk 0:02:26.8]}
8... Qa5 {[%clk 0:02:57.7]} 9. O-O-O {[%clk 0:02:23]} 9... b5 {[%clk 0:02:58]}
10. e5 {[%clk 0:02:23.5]} 10... dxe5 {[%clk 0:02:56]} 11. d6 {[%clk 0:02:24.7]}
11... Be6 {[%clk 0:02:44.9]} 12. dxe7 {[%clk 0:02:18.1]} 12... Kxe7 {[%clk
0:02:46.8]} 13. Nf3 {[%clk 0:02:18.9]} 13... b4 {[%clk 0:02:47.5]} 14. Nb1
{[%clk 0:02:16.2]} 14... Nc6 {[%clk 0:02:45.9]} 15. Re1 {[%clk 0:02:08.5]} 15...
e4 {[%clk 0:02:43.4]} 16. Ng5 {[%clk 0:02:07.3]} 16... b3 {[%clk 0:02:44.5]} 17.
axb3 {[%clk 0:02:06]} 17... Qxe1# {[%clk 0:02:44.5]} 0-1

[Event "*** Titled Tuesday Blitz"]
[Site "Chess.com"]
[Date "2019.11.05"]
[Round "1"]
[White "kikoveiga"]
[Black "Drags95"]
[Result "0-1"]
[WhiteElo "2413"]
[BlackElo "2772"]
[TimeControl "180+2"]
[EndTime "13:03:41 PST"]
[Termination "Drags95 won by resignation"]

1. Nf3 {[%clk 0:02:59]} 1... Nf6 {[%clk 0:02:56.2]} 2. d4 {[%clk 0:02:56.6]}
2... g6 {[%clk 0:02:57.3]} 3. c4 {[%clk 0:02:49.2]} 3... Bg7 {[%clk 0:02:58.3]}
4. Nc3 {[%clk 0:02:50.3]} 4... O-O {[%clk 0:02:59.1]} 5. e4 {[%clk 0:02:51.1]}
5... d6 {[%clk 0:03:00.8]} 6. Be2 {[%clk 0:02:52]} 6... e5 {[%clk 0:03:02.3]} 7.
O-O {[%clk 0:02:51.4]} 7... Nc6 {[%clk 0:03:03.2]} 8. d5 {[%clk 0:02:52.5]} 8...
Ne7 {[%clk 0:03:04.2]} 9. Ne1 {[%clk 0:02:47.3]} 9... Nd7 {[%clk 0:03:01.4]} 10.
Be3 {[%clk 0:02:47]} 10... f5 {[%clk 0:03:02.6]} 11. f3 {[%clk 0:02:48.5]} 11...
f4 {[%clk 0:03:02.9]} 12. Bf2 {[%clk 0:02:48.7]} 12... g5 {[%clk 0:03:04.4]} 13.
Rc1 {[%clk 0:02:46.9]} 13... h5 {[%clk 0:03:05.6]} 14. c5 {[%clk 0:02:44.2]}
14... Nxc5 {[%clk 0:03:03.2]} 15. b4 {[%clk 0:02:40.5]} 15... Na6 {[%clk
0:02:58.9]} 16. Bxa6 {[%clk 0:02:10]} 16... bxa6 {[%clk 0:03:00]} 17. Qc2 {[%clk
0:02:02.3]} 17... Rf7 {[%clk 0:02:53.5]} 18. b5 {[%clk 0:01:57]} 18... Ng6
{[%clk 0:02:49.3]} 19. Nd3 {[%clk 0:01:50.1]} 19... g4 {[%clk 0:02:49.5]} 20.
Nb4 {[%clk 0:01:47.2]} 20... Qg5 {[%clk 0:02:43.9]} 21. Qd2 {[%clk 0:01:37.7]}
21... gxf3 {[%clk 0:02:43.4]} 0-1

[Event "*** Titled Tuesday Blitz"]
[Site "Chess.com"]
[Date "2019.11.05"]
[Round "1"]
[White "goingin33"]
[Black "GM_shahin"]
[Result "0-1"]
[WhiteElo "2397"]
[BlackElo "2732"]
[TimeControl "180+2"]
[EndTime "13:03:52 PST"]
[Termination "GM_shahin won by resignation"]

1. e4 {[%clk 0:03:00.7]} 1... c5 {[%clk 0:03:00.6]} 2. Nf3 {[%clk 0:02:58.7]}
2... Nc6 {[%clk 0:03:01.4]} 3. d4 {[%clk 0:02:59.2]} 3... cxd4 {[%clk
0:03:02.4]} 4. Nxd4 {[%clk 0:03:01.1]} 4... Qb6 {[%clk 0:03:04]} 5. Nb3 {[%clk
0:03:01.2]} 5... Nf6 {[%clk 0:03:05.3]} 6. Nc3 {[%clk 0:03:02.4]} 6... e6 {[%clk
0:03:06.9]} 7. Qe2 {[%clk 0:03:02.7]} 7... Bb4 {[%clk 0:03:07.5]} 8. Bd2 {[%clk
0:02:59.6]} 8... O-O {[%clk 0:03:09]} 9. g4 {[%clk 0:02:59.3]} 9... d5 {[%clk
0:03:07.7]} 10. e5 {[%clk 0:02:55.7]} 10... Bxc3 {[%clk 0:03:05.7]} 11. Bxc3
{[%clk 0:02:53.2]} 11... Ne4 {[%clk 0:03:07.3]} 12. Bd2 {[%clk 0:02:44.8]} 12...
Nxd2 {[%clk 0:03:01.4]} 13. Kxd2 {[%clk 0:02:35.9]} 13... a5 {[%clk 0:03:00.4]}
14. a4 {[%clk 0:02:34.6]} 14... Bd7 {[%clk 0:02:51.2]} 15. Qe3 {[%clk
0:02:15.8]} 15... Qxe3+ {[%clk 0:02:37.2]} 16. Kxe3 {[%clk 0:02:11.2]} 16...
Nxe5 {[%clk 0:02:39.1]} 17. h3 {[%clk 0:02:10]} 17... Rfc8 {[%clk 0:02:38.5]}
18. c3 {[%clk 0:02:08.8]} 18... Nc4+ {[%clk 0:02:39.3]} 19. Bxc4 {[%clk
0:02:09.2]} 19... Rxc4 {[%clk 0:02:41.2]} 20. Nd2 {[%clk 0:01:59.8]} 20... Rxa4
{[%clk 0:02:41.8]} 21. Rxa4 {[%clk 0:01:59.2]} 21... Bxa4 {[%clk 0:02:43.7]} 22.
Ra1 {[%clk 0:02:00.4]} 22... Bc6 {[%clk 0:02:44.6]} 23. b4 {[%clk 0:01:58.8]}
23... b6 {[%clk 0:02:44.7]} 24. Nb3 {[%clk 0:01:57.3]} 24... axb4 {[%clk
0:02:38.6]} 25. Rxa8+ {[%clk 0:01:57.1]} 25... Bxa8 {[%clk 0:02:40.5]} 26. cxb4
{[%clk 0:01:58.5]} 26... e5 {[%clk 0:02:42.4]} 27. f4 {[%clk 0:01:57.4]} 27...
f6 {[%clk 0:02:43.7]} 28. Nc1 {[%clk 0:01:48.4]} 28... Kf7 {[%clk 0:02:42.5]}
29. Nd3 {[%clk 0:01:49.9]} 29... Ke6 {[%clk 0:02:43.8]} 30. h4 {[%clk
0:01:43.4]} 30... d4+ {[%clk 0:02:44.7]} 31. Kd2 {[%clk 0:01:42.8]} 31... e4
{[%clk 0:02:46]} 0-1

[Event "*** Titled Tuesday Blitz"]
[Site "Chess.com"]
[Date "2019.11.05"]
[Round "1"]
[White "ChessWarrior7197"]
[Black "JozefKneht"]
[Result "1-0"]
[WhiteElo "2939"]
[BlackElo "2497"]
[TimeControl "180+2"]
[EndTime "13:03:59 PST"]
[Termination "ChessWarrior7197 won by resignation"]

1. e4 {[%clk 0:03:01.9]} 1... c6 {[%clk 0:02:59.7]} 2. d4 {[%clk 0:03:02.2]}
2... d5 {[%clk 0:03:00.6]} 3. Nc3 {[%clk 0:03:04.1]} 3... dxe4 {[%clk
0:03:01.7]} 4. Nxe4 {[%clk 0:03:06]} 4... Nf6 {[%clk 0:03:03.4]} 5. Nxf6+ {[%clk
0:03:06.5]} 5... exf6 {[%clk 0:03:05.3]} 6. Bc4 {[%clk 0:03:06.8]} 6... Bd6
{[%clk 0:03:00.7]} 7. Qe2+ {[%clk 0:03:07]} 7... Be7 {[%clk 0:03:01.5]} 8. Be3
{[%clk 0:03:01.8]} 8... O-O {[%clk 0:02:37.8]} 9. O-O-O {[%clk 0:03:02.5]} 9...
Nd7 {[%clk 0:02:09.3]} 10. Nf3 {[%clk 0:02:48.7]} 10... b5 {[%clk 0:02:05.5]}
11. Bd3 {[%clk 0:02:49.1]} 11... Nb6 {[%clk 0:02:06.7]} 12. h4 {[%clk
0:02:47.4]} 12... Be6 {[%clk 0:02:06.6]} 13. Bxh7+ {[%clk 0:02:41.6]} 13... Kxh7
{[%clk 0:02:06.4]} 14. Ng5+ {[%clk 0:02:42.2]} 14... Kg6 {[%clk 0:00:47]} 15.
h5+ {[%clk 0:02:42.4]} 1-0

[Event "*** Titled Tuesday Blitz"]
[Site "Chess.com"]
[Date "2019.11.05"]
[Round "1"]
[White "MalyDominator"]
[Black "eldur16"]
[Result "0-1"]
[WhiteElo "2210"]
[BlackElo "2603"]
[TimeControl "180+2"]
[EndTime "13:04:05 PST"]
[Termination "eldur16 won by resignation"]

1. e4 {[%clk 0:02:58.2]} 1... e6 {[%clk 0:02:59.3]} 2. d4 {[%clk 0:02:57.6]}
2... d5 {[%clk 0:02:59.8]} 3. Nd2 {[%clk 0:02:58.9]} 3... a6 {[%clk 0:02:59.6]}
4. Ngf3 {[%clk 0:02:58.2]} 4... c5 {[%clk 0:02:59.7]} 5. exd5 {[%clk 0:02:58.3]}
5... exd5 {[%clk 0:03:00]} 6. dxc5 {[%clk 0:02:51.5]} 6... Bxc5 {[%clk
0:02:59.7]} 7. Nb3 {[%clk 0:02:52.6]} 7... Ba7 {[%clk 0:02:57.7]} 8. Bd3 {[%clk
0:02:51.4]} 8... Ne7 {[%clk 0:02:57.5]} 9. O-O {[%clk 0:02:52.1]} 9... Nbc6
{[%clk 0:02:55]} 10. c3 {[%clk 0:02:39.3]} 10... O-O {[%clk 0:02:55.2]} 11.
Bxh7+ {[%clk 0:02:01]} 11... Kxh7 {[%clk 0:02:54.9]} 12. Ng5+ {[%clk 0:02:02.4]}
12... Kg8 {[%clk 0:02:53.9]} 13. Qh5 {[%clk 0:02:03.1]} 13... Bf5 {[%clk
0:02:53.6]} 14. Bf4 {[%clk 0:01:57.4]} 14... Qd7 {[%clk 0:02:51.9]} 15. Rad1
{[%clk 0:01:57.7]} 15... Bg6 {[%clk 0:02:50.2]} 16. Qf3 {[%clk 0:01:57.8]} 16...
Rad8 {[%clk 0:02:43.8]} 17. Rfe1 {[%clk 0:01:57.2]} 17... Nf5 {[%clk 0:02:39.5]}
18. Be5 {[%clk 0:01:53.1]} 18... Rfe8 {[%clk 0:02:37]} 19. Bf4 {[%clk
0:01:47.5]} 19... d4 {[%clk 0:02:28]} 20. cxd4 {[%clk 0:01:45.9]} 20... Ncxd4
{[%clk 0:02:28.1]} 21. Qh3 {[%clk 0:01:42.5]} 21... Ne2+ {[%clk 0:02:20.3]} 0-1

[Event "*** Titled Tuesday Blitz"]
[Site "Chess.com"]
[Date "2019.11.05"]
[Round "1"]
[White "Donseng"]
[Black "SHIVACalypso"]
[Result "1-0"]
[WhiteElo "2626"]
[BlackElo "2273"]
[TimeControl "180+2"]
[EndTime "13:04:18 PST"]
[Termination "Donseng won by resignation"]

1. c4 {[%clk 0:02:58.9]} 1... Nf6 {[%clk 0:02:59.9]} 2. Nc3 {[%clk 0:03:00.3]}
2... g6 {[%clk 0:02:59.9]} 3. Nf3 {[%clk 0:03:01.8]} 3... Bg7 {[%clk 0:03:01.3]}
4. e4 {[%clk 0:03:03.1]} 4... d6 {[%clk 0:03:00.7]} 5. Be2 {[%clk 0:03:04.2]}
5... e5 {[%clk 0:03:01]} 6. d4 {[%clk 0:03:05]} 6... Nbd7 {[%clk 0:03:01.3]} 7.
O-O {[%clk 0:03:05.8]} 7... O-O {[%clk 0:03:01.3]} 8. Re1 {[%clk 0:03:07]} 8...
exd4 {[%clk 0:03:00.4]} 9. Nxd4 {[%clk 0:03:07.7]} 9... Nc5 {[%clk 0:03:01.8]}
10. Bf1 {[%clk 0:03:08.6]} 10... Ne6 {[%clk 0:03:00.7]} 11. Be3 {[%clk
0:03:07.4]} 11... Nxd4 {[%clk 0:02:59.7]} 12. Bxd4 {[%clk 0:03:08.4]} 12... Be6
{[%clk 0:03:01.1]} 13. Nd5 {[%clk 0:03:03.5]} 13... c6 {[%clk 0:02:53]} 14.
Nxf6+ {[%clk 0:03:03.1]} 14... Bxf6 {[%clk 0:02:54.7]} 15. b3 {[%clk 0:03:03.6]}
15... Bxd4 {[%clk 0:02:34.6]} 16. Qxd4 {[%clk 0:03:03.8]} 16... d5 {[%clk
0:02:36.1]} 17. exd5 {[%clk 0:03:03.8]} 17... cxd5 {[%clk 0:02:38]} 18. c5
{[%clk 0:03:04.8]} 18... Rc8 {[%clk 0:02:32.3]} 19. b4 {[%clk 0:03:04.8]} 19...
b6 {[%clk 0:02:30.1]} 20. Rac1 {[%clk 0:03:05]} 20... bxc5 {[%clk 0:02:28.5]}
21. Rxc5 {[%clk 0:03:05.8]} 21... Qb6 {[%clk 0:02:27.5]} 22. Rec1 {[%clk
0:03:04]} 22... Rxc5 {[%clk 0:02:21.6]} 23. Rxc5 {[%clk 0:03:04.4]} 23... Rb8
{[%clk 0:02:15.8]} 24. a3 {[%clk 0:03:03.7]} 24... a5 {[%clk 0:02:09]} 25. bxa5
{[%clk 0:03:01.8]} 25... Qb1 {[%clk 0:02:04.1]} 26. a6 {[%clk 0:02:56.9]} 26...
Qe1 {[%clk 0:01:43.5]} 27. a7 {[%clk 0:02:53.6]} 27... Ra8 {[%clk 0:01:43.3]}
28. Rb5 {[%clk 0:02:47.1]} 28... Rxa7 {[%clk 0:01:15.6]} 29. Rb8+ {[%clk
0:02:44.6]} 1-0

[Event "*** Titled Tuesday Blitz"]
[Site "Chess.com"]
[Date "2019.11.05"]
[Round "1"]
[White "Frolik67"]
[Black "Alextorngren"]
[Result "1/2-1/2"]
[WhiteElo "2580"]
[BlackElo "2205"]
[TimeControl "180+2"]
[EndTime "13:04:51 PST"]
[Termination "Game drawn by repetition"]

1. e4 {[%clk 0:03:01.5]} 1... c5 {[%clk 0:02:59.9]} 2. d4 {[%clk 0:03:02.3]}
2... cxd4 {[%clk 0:02:59.1]} 3. c3 {[%clk 0:03:03.6]} 3... d3 {[%clk 0:03:00.7]}
4. Bxd3 {[%clk 0:03:04.4]} 4... g6 {[%clk 0:03:02.4]} 5. Nf3 {[%clk 0:03:05.9]}
5... Bg7 {[%clk 0:03:03.9]} 6. O-O {[%clk 0:03:07.6]} 6... Nc6 {[%clk
0:03:04.4]} 7. c4 {[%clk 0:03:09.1]} 7... d6 {[%clk 0:03:05.9]} 8. Nc3 {[%clk
0:03:10.2]} 8... Nf6 {[%clk 0:03:07.4]} 9. h3 {[%clk 0:03:10.7]} 9... O-O {[%clk
0:03:08.4]} 10. Qe2 {[%clk 0:03:11.6]} 10... Nd7 {[%clk 0:03:07.4]} 11. Rd1
{[%clk 0:03:12.4]} 11... Nc5 {[%clk 0:03:07.5]} 12. Bb1 {[%clk 0:03:08.9]} 12...
Be6 {[%clk 0:03:06.8]} 13. Be3 {[%clk 0:03:07.6]} 13... Qa5 {[%clk 0:03:02.5]}
14. Nd5 {[%clk 0:03:01.1]} 14... Rfc8 {[%clk 0:02:50.8]} 15. Nd4 {[%clk
0:02:55.1]} 15... Bxd5 {[%clk 0:02:48.3]} 16. exd5 {[%clk 0:02:53.2]} 16... Ne5
{[%clk 0:02:46.3]} 17. b3 {[%clk 0:02:47.7]} 17... Qd8 {[%clk 0:02:35.4]} 18.
Bc2 {[%clk 0:02:42.1]} 18... a5 {[%clk 0:02:36]} 19. h4 {[%clk 0:02:38.9]} 19...
Qd7 {[%clk 0:02:05.1]} 20. h5 {[%clk 0:02:37.3]} 20... Qg4 {[%clk 0:02:05.3]}
21. hxg6 {[%clk 0:02:36.4]} 21... hxg6 {[%clk 0:01:58]} 22. f3 {[%clk
0:02:36.3]} 22... Qh4 {[%clk 0:01:52.4]} 23. Qf2 {[%clk 0:02:29.5]} 23... Qh8
{[%clk 0:01:32.5]} 24. Qe2 {[%clk 0:02:02.4]} 24... Bf6 {[%clk 0:01:32.5]} 25.
Kf2 {[%clk 0:02:01.3]} 25... Qh4+ {[%clk 0:01:31.2]} 26. Kg1 {[%clk 0:01:58.7]}
26... Qh8 {[%clk 0:01:30.7]} 27. Kf2 {[%clk 0:01:59.1]} 27... Qh4+ {[%clk
0:01:13.9]} 28. Kg1 {[%clk 0:02:00.1]} 28... Qh8 {[%clk 0:01:14.3]} 1/2-1/2

[Event "*** Titled Tuesday Blitz"]
[Site "Chess.com"]
[Date "2019.11.05"]
[Round "1"]
[White "SharpCube"]
[Black "pheonixking2000"]
[Result "0-1"]
[WhiteElo "2322"]
[BlackElo "2680"]
[TimeControl "180+2"]
[EndTime "13:04:54 PST"]
[Termination "pheonixking2000 won by resignation"]

1. c4 {[%clk 0:02:59.4]} 1... Nf6 {[%clk 0:02:59.5]} 2. Nf3 {[%clk 0:03:00.3]}
2... d6 {[%clk 0:02:59.5]} 3. d4 {[%clk 0:03:00.9]} 3... Nc6 {[%clk 0:03:00.3]}
4. Nc3 {[%clk 0:03:02.8]} 4... e5 {[%clk 0:03:00.3]} 5. dxe5 {[%clk 0:03:03.8]}
5... Nxe5 {[%clk 0:03:00.6]} 6. Nxe5 {[%clk 0:03:04.5]} 6... dxe5 {[%clk
0:03:02.2]} 7. Qxd8+ {[%clk 0:03:06.1]} 7... Kxd8 {[%clk 0:03:04.1]} 8. g3
{[%clk 0:03:02.3]} 8... c6 {[%clk 0:03:05.2]} 9. Bg2 {[%clk 0:03:03.1]} 9... Be6
{[%clk 0:03:06.3]} 10. b3 {[%clk 0:03:03.3]} 10... Kc7 {[%clk 0:03:07]} 11. Bd2
{[%clk 0:03:04.5]} 11... Nd7 {[%clk 0:03:07.4]} 12. O-O-O {[%clk 0:03:03.3]}
12... f6 {[%clk 0:03:08]} 13. Kc2 {[%clk 0:03:03.5]} 13... Bc5 {[%clk
0:03:08.4]} 14. e3 {[%clk 0:03:02.9]} 14... Rad8 {[%clk 0:03:08.1]} 15. h3
{[%clk 0:03:00.8]} 15... f5 {[%clk 0:03:08.6]} 16. Rhf1 {[%clk 0:02:50.7]} 16...
e4 {[%clk 0:03:09.1]} 17. g4 {[%clk 0:02:44.2]} 17... g6 {[%clk 0:03:07.5]} 18.
Kb2 {[%clk 0:02:44.2]} 18... Ne5 {[%clk 0:03:08]} 19. Na4 {[%clk 0:02:33.1]}
19... Nd3+ {[%clk 0:03:02.5]} 20. Kc2 {[%clk 0:02:33.9]} 20... Bb4 {[%clk
0:02:45.2]} 21. Bc3 {[%clk 0:02:23.3]} 21... Bxc3 {[%clk 0:02:41.4]} 22. Kxc3
{[%clk 0:02:14.4]} 22... fxg4 {[%clk 0:02:39.7]} 23. Bxe4 {[%clk 0:02:11.9]}
23... Nxf2 {[%clk 0:02:40.2]} 24. Rxd8 {[%clk 0:01:44.7]} 24... Nxe4+ {[%clk
0:02:36]} 25. Kd4 {[%clk 0:01:46]} 25... Rxd8+ {[%clk 0:02:35.3]} 26. Kxe4
{[%clk 0:01:47.4]} 26... gxh3 {[%clk 0:02:36.2]} 27. Nc5 {[%clk 0:01:47.8]}
27... Bf5+ {[%clk 0:02:32.9]} 28. Kf4 {[%clk 0:01:42.1]} 28... b6 {[%clk
0:02:27.8]} 29. e4 {[%clk 0:01:36.2]} 29... bxc5 {[%clk 0:02:16.2]} 30. exf5
{[%clk 0:01:36.8]} 30... Rf8 {[%clk 0:02:16.9]} 31. Kg3 {[%clk 0:01:29.7]} 31...
Rxf5 {[%clk 0:02:16.4]} 32. Re1 {[%clk 0:01:31.1]} 32... Rh5 {[%clk 0:02:04.1]}
0-1

[Event "*** Titled Tuesday Blitz"]
[Site "Chess.com"]
[Date "2019.11.05"]
[Round "1"]
[White "CzechmVIII"]
[Black "enriquetejedor"]
[Result "0-1"]
[WhiteElo "2098"]
[BlackElo "2553"]
[TimeControl "180+2"]
[EndTime "13:04:55 PST"]
[Termination "enriquetejedor won by resignation"]

1. e4 {[%clk 0:02:59.9]} 1... e6 {[%clk 0:02:49.2]} 2. d4 {[%clk 0:03:00.1]}
2... d5 {[%clk 0:02:49.4]} 3. Nc3 {[%clk 0:03:01.2]} 3... Nf6 {[%clk 0:02:48.7]}
4. Bg5 {[%clk 0:03:01.2]} 4... Be7 {[%clk 0:02:48.6]} 5. e5 {[%clk 0:03:01.4]}
5... Nfd7 {[%clk 0:02:49]} 6. Bxe7 {[%clk 0:03:02.3]} 6... Qxe7 {[%clk
0:02:50.9]} 7. f4 {[%clk 0:03:03.4]} 7... a6 {[%clk 0:02:50.2]} 8. Nf3 {[%clk
0:03:04.2]} 8... b5 {[%clk 0:02:50.6]} 9. Bd3 {[%clk 0:02:59]} 9... c5 {[%clk
0:02:51.6]} 10. dxc5 {[%clk 0:03:00]} 10... Nc6 {[%clk 0:02:52.7]} 11. Qd2
{[%clk 0:02:57.5]} 11... Nxc5 {[%clk 0:02:50.7]} 12. Ne2 {[%clk 0:02:48.3]}
12... b4 {[%clk 0:02:41.3]} 13. Ned4 {[%clk 0:02:46.8]} 13... Nxd4 {[%clk
0:02:42.2]} 14. Nxd4 {[%clk 0:02:47.6]} 14... a5 {[%clk 0:02:44.1]} 15. Nb5
{[%clk 0:02:31.2]} 15... O-O {[%clk 0:02:43]} 16. O-O {[%clk 0:02:13.3]} 16...
Nxd3 {[%clk 0:02:41.9]} 17. Qxd3 {[%clk 0:01:53.9]} 17... Ba6 {[%clk 0:02:42.7]}
18. a4 {[%clk 0:01:34.4]} 18... bxa3 {[%clk 0:02:40.3]} 19. c4 {[%clk
0:01:34.8]} 19... Qc5+ {[%clk 0:02:31.8]} 20. Qd4 {[%clk 0:01:30.9]} 20... Qxd4+
{[%clk 0:02:29.1]} 21. Nxd4 {[%clk 0:01:31.8]} 21... axb2 {[%clk 0:02:29.1]} 22.
Rab1 {[%clk 0:01:17.4]} 22... Bxc4 {[%clk 0:02:28.2]} 23. Rf2 {[%clk 0:01:13.4]}
23... Rfb8 {[%clk 0:02:28.7]} 24. Rfxb2 {[%clk 0:01:13.5]} 24... Rxb2 {[%clk
0:02:30.6]} 25. Rxb2 {[%clk 0:01:14.9]} 25... a4 {[%clk 0:02:32.3]} 26. Rb1
{[%clk 0:01:14.8]} 26... a3 {[%clk 0:02:30.5]} 0-1

[Event "*** Titled Tuesday Blitz"]
[Site "Chess.com"]
[Date "2019.11.05"]
[Round "1"]
[White "punkmonkZ"]
[Black "gross-aleks"]
[Result "0-1"]
[WhiteElo "2041"]
[BlackElo "2547"]
[TimeControl "180+2"]
[EndTime "13:05:07 PST"]
[Termination "gross-aleks won by resignation"]

1. e4 {[%clk 0:03:01.9]} 1... e5 {[%clk 0:02:59]} 2. Nc3 {[%clk 0:03:01.5]} 2...
Nc6 {[%clk 0:02:59.3]} 3. Bc4 {[%clk 0:03:01.8]} 3... Nf6 {[%clk 0:02:59.4]} 4.
d3 {[%clk 0:03:02.4]} 4... Bb4 {[%clk 0:02:58.7]} 5. Ne2 {[%clk 0:03:02.4]} 5...
O-O {[%clk 0:02:58.4]} 6. O-O {[%clk 0:03:02.8]} 6... d6 {[%clk 0:02:56.1]} 7.
Bg5 {[%clk 0:03:03.3]} 7... h6 {[%clk 0:02:55.4]} 8. Bxf6 {[%clk 0:03:02.5]}
8... Qxf6 {[%clk 0:02:56.4]} 9. Nd5 {[%clk 0:03:03.5]} 9... Qd8 {[%clk
0:02:55.1]} 10. c3 {[%clk 0:03:02.5]} 10... Ba5 {[%clk 0:02:53.8]} 11. f4 {[%clk
0:03:01]} 11... Bb6+ {[%clk 0:02:53.7]} 12. Nxb6 {[%clk 0:02:52.4]} 12... axb6
{[%clk 0:02:54.1]} 13. f5 {[%clk 0:02:50.9]} 13... Na5 {[%clk 0:02:45.6]} 14. f6
{[%clk 0:02:47.9]} 14... Nxc4 {[%clk 0:02:45.7]} 15. dxc4 {[%clk 0:02:48.6]}
15... Be6 {[%clk 0:02:30.1]} 16. fxg7 {[%clk 0:02:49]} 16... Kxg7 {[%clk
0:02:27.5]} 17. Ng3 {[%clk 0:02:48.9]} 17... Qg5 {[%clk 0:02:25.7]} 18. b3
{[%clk 0:02:43.3]} 18... Kh8 {[%clk 0:02:25.3]} 19. Qf3 {[%clk 0:02:41.6]} 19...
Rg8 {[%clk 0:02:25.2]} 20. a4 {[%clk 0:02:40.4]} 20... Rg6 {[%clk 0:02:20.1]}
21. Ra2 {[%clk 0:02:39.7]} 21... Rag8 {[%clk 0:02:19.4]} 22. Raf2 {[%clk
0:02:39.8]} 22... R8g7 {[%clk 0:02:13.7]} 23. Kh1 {[%clk 0:02:36.6]} 23... Bg4
{[%clk 0:02:12]} 24. Qd3 {[%clk 0:02:34.7]} 24... h5 {[%clk 0:02:06.5]} 25. Rg1
{[%clk 0:02:30]} 25... h4 {[%clk 0:01:55.2]} 26. Nf5 {[%clk 0:02:30.8]} 26...
Rh7 {[%clk 0:01:55.9]} 27. h3 {[%clk 0:02:28]} 27... Bxf5 {[%clk 0:01:48.6]} 28.
Rxf5 {[%clk 0:02:27.3]} 28... Qg3 {[%clk 0:01:40.4]} 29. Rf3 {[%clk 0:02:27.9]}
29... Qg5 {[%clk 0:01:40.4]} 30. Qf1 {[%clk 0:02:28.4]} 30... Kg8 {[%clk
0:01:39.6]} 31. Rf5 {[%clk 0:02:28.5]} 31... Qd2 {[%clk 0:01:36.7]} 32. Qf3
{[%clk 0:02:24.4]} 32... Rhg7 {[%clk 0:01:35.7]} 33. Qf2 {[%clk 0:02:16.9]}
33... Qxc3 {[%clk 0:01:34.8]} 34. Qxh4 {[%clk 0:02:16.5]} 34... Qxb3 {[%clk
0:01:34.8]} 35. Qd8+ {[%clk 0:02:16.2]} 35... Kh7 {[%clk 0:01:35.3]} 36. Qf8
{[%clk 0:02:07.1]} 36... Qxh3+ {[%clk 0:01:34.5]} 0-1

[Event "*** Titled Tuesday Blitz"]
[Site "Chess.com"]
[Date "2019.11.05"]
[Round "1"]
[White "Faustregel"]
[Black "djano"]
[Result "1-0"]
[WhiteElo "2749"]
[BlackElo "2402"]
[TimeControl "180+2"]
[EndTime "13:05:30 PST"]
[Termination "Faustregel won on time"]

1. e4 {[%clk 0:03:01.1]} 1... d5 {[%clk 0:02:59.8]} 2. exd5 {[%clk 0:03:02]}
2... Qxd5 {[%clk 0:03:01.7]} 3. Nc3 {[%clk 0:03:02.8]} 3... Qd8 {[%clk 0:03:03]}
4. Nf3 {[%clk 0:03:02.6]} 4... Nf6 {[%clk 0:03:04.4]} 5. d4 {[%clk 0:03:04]}
5... g6 {[%clk 0:03:05.7]} 6. Bc4 {[%clk 0:03:00.9]} 6... Bg7 {[%clk 0:03:07]}
7. O-O {[%clk 0:03:01.5]} 7... O-O {[%clk 0:03:08.3]} 8. h3 {[%clk 0:03:03]}
8... a6 {[%clk 0:03:09.3]} 9. a4 {[%clk 0:03:03.5]} 9... b6 {[%clk 0:03:10.7]}
10. Ne5 {[%clk 0:03:01.6]} 10... Bb7 {[%clk 0:03:11.9]} 11. Be3 {[%clk 0:02:55]}
11... Nbd7 {[%clk 0:03:12.2]} 12. f4 {[%clk 0:02:54.9]} 12... c5 {[%clk
0:03:10.9]} 13. Qe2 {[%clk 0:02:51.5]} 13... cxd4 {[%clk 0:03:10.1]} 14. Bxd4
{[%clk 0:02:52.5]} 14... Nxe5 {[%clk 0:03:09.6]} 15. Bxe5 {[%clk 0:02:51.9]}
15... Ra7 {[%clk 0:03:01.7]} 16. Rad1 {[%clk 0:02:43.9]} 16... Qa8 {[%clk
0:03:02.7]} 17. Bd4 {[%clk 0:02:36.7]} 17... Nh5 {[%clk 0:02:58.9]} 18. Bxb6
{[%clk 0:02:28.4]} 18... Ng3 {[%clk 0:02:52.2]} 19. Qf2 {[%clk 0:02:29]} 19...
Nxf1 {[%clk 0:02:31.3]} 20. Bxf1 {[%clk 0:02:30.9]} 20... Bxc3 {[%clk 0:02:08]}
21. bxc3 {[%clk 0:02:30.2]} 21... Bf3 {[%clk 0:02:08.6]} 22. gxf3 {[%clk
0:02:17.5]} 22... Rb7 {[%clk 0:02:08.8]} 23. a5 {[%clk 0:02:18]} 1-0